Workbook

Sheet Criterios de Evaluación
B1: Criterio 1 | C1: Criterio 2 | D1: Criterio 3 | E1: Criterio 4 | F1: TOTAL
B2: Porcentaje del calor en juego en el proceso sobre el total consumido | C2: Valor económico del calor requerido | D2: Viabilidad técnico-económica del reciclado de energía. | E2: Impacto positivo sobre otros aspectos ambientales de la organización | H2: Valoración Criterio 1 | M2: Valoración Criterio 2 | R2: Valoración Criterio 3
A3: Ponderación | B3: 0.2 | C3: 0.45 | D3: 0.3 | E3: 0.05 | H3: 0 | I3: a | J3: 0.09 | K3: 0 | M3: 0 | N3: a | O3: 0.07 | P3: 0 | R3: -2 | S3: No viable
A4: Precalentamiento | B4: 0 | C4: 1 | D4: 0 | E4: 0 | F4: =0.2*B4+0.45*C4+0.3*D4+0.05*E4 -> 0.45 | H4: 0.1 | I4: a | J4: 0.19 | K4: 1 | M4: 0.08 | N4: a | O4: 0.15 | P4: 1 | R4: 0 | S4: Viabilidad técnica pero no económica
A5: Maceración | B5: 1 | C5: 1 | D5: -2 | E5: 0 | F5: =0.2*B5+0.45*C5+0.3*D5+0.05*E5 -> 0.05 | H5: 0.2 | I5: a | J5: 0.29 | K5: 2 | M5: 0.16 | N5: a | O5: 0.23 | P5: 2 | R5: 1 | S5: Viable
A6: Cocción | B6: 3 | C6: 2 | D6: 1 | E6: 4 | F6: 2 | H6: 0.3 | I6: a | J6: 0.39 | K6: 3 | M6: 0.24 | N6: a | O6: 0.31 | P6: 3
A7: Enfriamiento | B7: 0 | C7: 3 | D7: 1 | E7: 3 | F7: 1.8 | H7: 0.4 | I7: a | J7: 0.49 | K7: 4 | M7: 0.32 | N7: a | O7: 0.39 | P7: 4
A8: Fermentación | B8: 4 | C8: 4 | D8: -2 | E8: 0 | F8: 2 | I8: > a | J8: 0.5 | K8: 5 | N8: > a | O8: 0.4 | P8: 5
B10: Valor Alcanzado Matematicamente
B11: Criterio 1 | C11: Criterio 2 (Energía [m3]o[kWh]) | D11: Criterio 2 (Precio Mensual[US$]) | E11: Criterio 3 [Depreciación U$S/litro] | H11: Relación U$S - $
A12: Precalentamiento | B12: 121309.9578 | C12: 3.244275721 | D12: =('Precios Energía'!$B$3+'Precios Energía'!$C$3*'Criterios de Evaluación'!C12*16)/H12 -> 20.48794098 | E12: 0.001135625 | H12: 25 | I12: : | J12: 1
A13: Maceración ET1 | B13: 76160.61104 | C13: 2.036815657
A14: Maceración ET2 | B14: 31963.6613 | C14: 0.8548262009
A15: Maceración ET3 | B15: 37621.61431 | C15: 1.006140734
A16: Maceracion Total | B16: =SUM(B13:B15) -> 145745.8867 | C16: =SUM(C13:C15) -> 3.897782592 | D16: =('Precios Energía'!$B$3+'Precios Energía'!$C$3*'Criterios de Evaluación'!C16*16)/H12 -> 21.95597881
A17: Cocción | B17: 462939.2166 | C17: 12.3807022 | D17: =('Precios Energía'!$B$3+'Precios Energía'!$C$3*'Criterios de Evaluación'!C17*16)/H12 -> 41.01200942 | E17: 0.000823125
A18: Enfriamiento | B18: 4026.779576 | C18: 0.6722891566 | D18: =('Precios Energía'!$B$4+'Precios Energía'!$C$4*'Criterios de Evaluación'!C18*16)/H12 -> 55.23008386 | E18: 0.001099020833
A19: Fermentación ET1 | B19: 40695.3 | C19: 29.96993544
A20: Fermentación ET2 | B20: 80237 | C20: 59.09030552
A21: Fermentacion Total | B21: =SUM(B19:B20)*5.25 -> 634894.575 | C21: =SUM(C19:C20) -> 89.06024096 | D21: =('Precios Energía'!B4+'Precios Energía'!C4*'Criterios de Evaluación'!C21*4)/H12 -> 90.88406747
A22: TOTAL | B22: =B12+B16+B17+B18+B21 -> 1368916.416 | C22: =C12+C16+C17+C18+C21 -> 109.2552906 | D22: 229.5700805 | E22: =SUM(E12,E17,E18) -> 0.003057770833
B24: Valor Porcentual
A25: Precalentamiento | B25: =B12/B22 -> 0.08861750534 | C25: =C12/C22 -> 0.0296944496 | D25: =D12/D22 -> 0.08924482203
A26: Maceracion Total | B26: =B16/B22 -> 0.1064680685 | C26: =C16/C22 -> 0.03567591619 | D26: =D16/D22 -> 0.09563954833
A27: Cocción | B27: =B17/B22 -> 0.3381793157 | C27: =C17/C22 -> 0.1133190176 | D27: =D17/D22 -> 0.1786470141
A28: Enfriamiento | B28: =B18/B22 -> 0.002941581772 | C28: =C18/C22 -> 0.006153378502 | D28: =D18/D22 -> 0.2405804961
A29: Fermentacion Total | B29: =B21/B22 -> 0.4637935288 | C29: =C21/C22 -> 0.8151572381 | D29: =D21/D22 -> 0.3958881195
A30: TOTAL | B30: =B25+B26+B27+B28+B29 -> 1 | C30: =C25+C26+C27+C28+C29 -> 1 | D30: =D25+D26+D27+D28+D29 -> 1
B32: Criterio 3
B33: Energía Residual | D33: Precio energia por lote (U$S)
A34: Precalentamiento | D34: 1.024397049
A35: Maceracion Total | D35: 1.097798941
A36: Cocción | B36: 191845 | D36: 2.050600471
A37: Enfriamiento | B37: 180463.2394 | D37: 2.761504193
A38: Fermentacion Total | D38: 4.544203373
B40: Energía aprovechada | C40: Energía aprovechada [m3] | D40: Ahorro implicado [m3] | E40: Valor variable de ahorro por lote ($) | F40: Valor variable de ahorro por lote (U$S)
A41: Estrategia 1 | B41: 100984.7826 | C41: 2.700705568 | D41: 3.669366552 | E41: =D41*'Precios Energía'!C3 -> 12.8794766 | F41: =E41/H$12 -> 0.5151790639
A42: Estrategia 2 | B42: 18875.20833 | C42: 0.5047926918 | D42: 4.008840114 | E42: =D42*'Precios Energía'!C3 -> 14.0710288 | F42: =E42/H$12 -> 0.562841152
A43: Estrategia 3 | B43: 94376.04167 | C43: 2.523963459 | D43: 3.244275721 | E43: =D43*'Precios Energía'!C3 -> 11.38740778 | F43: 0.4554963113
B45: Ahorro implicado | C45: Valor Monetario por lote ($) | D45: Valor Monetario por mes ($) | E45: Valor Monetario por lote (U$S)
A46: Estrategia 1 | B46: 137204.9541 | C46: 29.3794766 | D46: 587.5895319 | E46: =C46/$H$12 -> 1.175179064
A47: Estrategia 2 | B47: 149898.5496 | C47: 30.5710288 | D47: 611.420576 | E47: =C47/$H$12 -> 1.222841152
A48: Estrategia 3 | B48: 121309.9578 | C48: 27.88740778 | D48: 557.7481556 | E48: 1.115496311
A50: Etapa calentamiento: combina estrategia 2 + 3 [POR LOTE] | D50: Etapa enfriamiento: combina estrategia 1 + 2 + 3 [POR LOTE]
A51: Ahorro energético | B51: Energia Aprovechada | C51: Ahorro monetario | D51: Ahorro energético | E51: Energia Aprovechada | F51: Ahorro monetario
A52: =B47+B48 -> 271208.5073 | B52: =B42+B43 -> 113251.25 | C52: =F42+F43 -> 1.018337463 | D52: =B46+B47+B48 -> 408413.4614 | E52: =B41+B42+B43 -> 214236.0326 | F52: =F41+F42+F43 -> 1.533516527
A54: Etapa cocción: unicamente estrategia 1 [POR LOTE]
A55: Ahorro energético | B55: Energia Aprovechada | C55: Ahorro monetario
A56: =B46 -> 137204.9541 | B56: =B41 -> 100984.7826 | C56: =F41 -> 0.5151790639

Sheet Variables constantes
A1: Variable | B1: Valor | C1: Unidad | D1: Observaciones
A2: Coeficiente de convección del aire (h) | B2: 0.025 | C2: kW/m2K
A3: Temperatura ambiente | B3: 20 | C3: ºC
A4: Densidad del agua | B4: 989 | C4: kg/m3
A5: Cp del agua | B5: 4.214 | C5: kJ/kg.K
A6: Presión atmosférica | B6: 1 | C6: atm
A7: Calor de Vaporización | B7: 2257 | C7: kJ/kg
A8: Entalpía de fermentación | B8: 79 | C8: kJ/mol
A9: Factor de aprovechamiento | B9: 0.8 | C9: adimensional
A10: π | B10: =PI() -> 3.141592654
A12: Precalentamiento
A13: Variable | B13: Valor | C13: Unidad | D13: Observaciones | L13: Calor requerido:
A14: Tiempo de proceso | B14: =1800/60 -> 30 | C14: min | D14: (1ºC/min)
A15: Temperatura inicial | B15: 20 | C15: ºC | L15: La ecuación puede simplificarse a: | P15: A . V = f . Q - C
A16: Temperatura final | B16: 50 | C16: ºC
A17: Cálculo de Calor Residual [kJ]
A20: Se conoce el comportamiento de Temperatura en funcion del tiempo como:
A24: Maceración
A25: Variable | B25: Valor | C25: Unidad | D25: Observaciones | M25: MACERACIÓN ETAPA I (50°C a 67°C) | V25: MACERACIÓN ETAPA II (30 minutos a 67°C y luego calentamiento a 72°C) | AF25: MACERACIÓN ETAPA III (30 minutos a 72°C y luego calentamiento a 78°C)
A26: Tiempo total del proceso | B26: 107 | C26: min
A27: Tiempo etapa I constante | B27: 20 | C27: min | D27: Cálculo de Calor Residual [kJ]
A28: Tiempo etapa I calentamiento | B28: 17 | C28: min
A29: Tiempo etapa II constante | B29: 30 | C29: min | D29: Cálculo de Calor Residual [kJ]
A30: Tiempo etapa II calentamiento | B30: 5 | C30: min
A31: Tiempo etapa III constante | B31: 30 | C31: min | D31: Cálculo de Calor Residual [kJ]
A32: Tiempo etapa III calentamiento | B32: 6 | C32: min
A33: Temperatura inicial | B33: 50 | C33: ºC | M33: La ecuación puede simplificarse a: | P33: A.V=f.Q-C1-C2 | V33: La ecuación puede simplificarse a: | Y33: A.V=f.Q-C1-C2 | AF33: La ecuación puede simplificarse a: | AI33: A.V=f.Q-C1-C2
A34: Temperatura etapa I | B34: 67 | C34: ºC
A35: Temperatura etapa II | B35: 72 | C35: ºC
A36: Temperatura etapa III | B36: 78 | C36: ºC
A37: Agua de lavado | B37: 60 | C37: % | D37: del volumen inicial
A40: Cocción
A41: Variable | B41: Valor | C41: Unidad | D41: Observaciones | M41: COCCIÓN DEL MOSTO
A42: Densidad del Mosto | B42: 1030 | C42: kg/m3
A43: Cp del Mosto | B43: 4.1 | C43: kJ/kg.K
A44: Vapor de cocción | B44: 8.5 | C44: % | D44: del volumen
A45: λ (calor de vaporización) | B45: 2257 | C45: kJ/kg
A46: Tiempo etapa I (hasta ebullir) | B46: 20 | C46: min
A47: Tiempo etapa II (ebulliendo) | B47: 90 | C47: min
A48: Temperatura inicial | B48: 79 | C48: ºC
A49: Temperatura final | B49: 100 | C49: ºC
A50: Cálculo de Calor Residual [kJ] | M50: La ecuación puede simplificarse a: | P50: A.V=f.Q-C1-C2-B.V
A55: Enfriamiento
A56: Variable | B56: Valor | C56: Unidad | D56: Observaciones
A57: Densidad del Mosto | B57: 1030 | C57: kg/m3
A58: Cp glicol | B58: 2.408 | C58: kJ/kg.K
A59: Caudal mosto dulce | B59: 1060 | C59: l/h | D59: Varia según el volumen de entrada
A60: Caudal glicol | B60: 1300 | C60: l/h
A61: Caudal agua de red | B61: 1566 | C61: l/h
A62: Tiempo total del proceso | B62: 45 | C62: min
A63: Tiempo agua de red | B63: 30 | C63: min
A64: Tiempo glicol | B64: 15 | C64: min
A65: Temperatura inicial mosto | B65: 100 | C65: ºC
A66: Temperatura inicial agua de red | B66: 20 | C66: °C
A67: Temperatura fin etapa agua de red | B67: 30 | C67: °C
A68: Temperatura inicial glicol | B68: 0 | C68: °C
A69: Temperatura fin etapa glicol | B69: 16 | C69: ºC
A70: Cálculo de Energía Necesaria | B70: =1/1.341022 -> 0.7456999214 | C70: HP a kJ/s
A73: Fermentación
A74: Variable | B74: Valor | C74: Unidad | D74: Observaciones
A75: Capacidad de remoción del calor | B75: 1300 | C75: kJ/kg | D75: Del amoníaco
A76: Entalpía de reacción | B76: 79 | C76: kJ/mol
A77: Gravedad específica | B77: 9 | C77: %
A78: Temperatura primaria de fermentación | B78: 20 | C78: °C
A79: Temperatura inicial | B79: 16 | C79: ºC
A80: Temperatura final | B80: 1 | C80: °C
A81: Tiempo de fermentación primaria | B81: 12 | C81: h
A82: Tiempo de fermentación | B82: 96 | C82: h
A83: Tiempo de maduración | B83: 18 | C83: h
A84: Tiempo total | B84: =SUM(B81:B83) -> 126
A85: Equivalencia entálpica | B85: 439 | C85: kJ/kg
A86: Cálculo de Calor Residual [kJ]

Sheet Equipos Disponibles
A1: Intercambiadores de Placas | M1: Equipos
A2: Volumen | C2: Densidad | E2: Caudal | G2: Temperatura ingreso | I2: Temperatura egreso | M2: Etapa | N2: Nombre del equipo | O2: Capacidad | P2: Dimensiones | Q2: Medida (m) | R2: Material
A3: 600 | B3: l | C3: 981.7 | D3: kg/m3 | E3: 0.6 | F3: m3/h | G3: 99 | H3: ºC | I3: 30 | J3: ºC | K3: Cerveza (medio caliente) | M3: Calentamiento de agua | N3: Depósito generador de agua caliente. | O3: 690 l brutos | P3: Altura | Q3: 1.8 | R3: acero inoxidable AISI 316
A4: 30 | B4: placas | C4: 995.7 | D4: kg/m3 | E4: 1.94 | F4: m3/h | G4: 15 | H4: ºC | I4: 68 | J4: ºC | K4: Agua (medio frío) | P4: Diametro | Q4: 0.7
A5: 837 | B5: euros | D5: =A5*1.14 -> 954.18 | E5: U$S | I5: 817 | J5: l/30min | P5: Espesor | Q5: 0.01
M6: Maceración | N6: Cuba de mezclado/filtrado | O6: 690 l brutos | P6: Altura | Q6: 1.8 | R6: acero inoxidable AISI 304
A7: 600 | B7: l | C7: 1008.5 | D7: kg/m3 | E7: 0.6 | F7: m3/h | G7: 30 | H7: ºC | I7: 16 | J7: ºC | K7: Cerveza (medio caliente) | P7: Diametro | Q7: 0.7
A8: 12 | B8: placas | C8: 1000.3 | D8: kg/m3 | E8: 1.14 | F8: m3/h | G8: 5 | H8: ºC | I8: 12 | J8: ºC | K8: Glicol (medio frío) | P8: Espesor | Q8: 0.01
A9: 561 | B9: euros | D9: =A9*1.14 -> 639.54 | E9: U$S | M9: Cocción | N9: Cuba de cocción a fuego directo | O9: 950 l brutos | P9: Altura | Q9: 1.5 | R9: acero inoxidable AISI 304
P10: Diametro | Q10: 0.9
A11: Volumen | C11: Densidad | E11: Caudal | G11: Temperatura ingreso | I11: Temperatura egreso | P11: Espesor | Q11: 0.02
A12: 1100 | B12: l | C12: 981.7 | D12: kg/m3 | E12: 1.1 | F12: m3/h | G12: 99 | H12: ºC | I12: 30 | J12: ºC | K12: Cerveza (medio caliente) | M12: Enfriamiento | N12: Intercambiador de calor de 4 placas. | O12: 1800 l/h | P12: 4 placas de 0,4 m2 | R12: acero inoxidable AISI 316
A13: 20 | B13: placas | C13: 995.7 | D13: kg/m3 | E13: 3.55 | F13: m3/h | G13: 15 | H13: ºC | I13: 35 | J13: ºC | K13: Agua (medio frío) | N13: Intercambiador de calor de 2 placas. | O13: 1300 l/h | P13: 2 placas de 0,4 m2 | R13: acero inoxidable AISI 316
A14: 1290 | B14: euros | D14: =A14*1.14 -> 1470.6 | E14: U$S | M14: Fermentación | N14: Tanques de fermentación cilíndricos con camisa interior. | O14: 850 l brutos | P14: Altura | Q14: 1.4 | R14: acero inoxidable AISI 316
P15: Diametro | Q15: 0.9
A16: 1100 | B16: l | C16: 1008.5 | D16: kg/m3 | E16: 1.1 | F16: m3/h | G16: 30 | H16: ºC | I16: 16 | J16: ºC | K16: Cerveza (medio caliente) | P16: Espesor | Q16: 0.2
A17: 20 | B17: placas | C17: 1000.3 | D17: kg/m3 | E17: 2.1 | F17: m3/h | G17: 5 | H17: ºC | I17: 12 | J17: ºC | K17: Glicol (medio frío)
A18: 697 | B18: euros | D18: =A18*1.14 -> 794.58 | E18: U$S
M19: Bomba
A20: Volumen | C20: Densidad | E20: Caudal | G20: Temperatura ingreso | I20: Temperatura egreso | M20: Potencia | N20: 1 | O20: HP
A21: 1300 | B21: l | C21: 1025.1 | D21: kg/m3 | E21: 1.3 | F21: m3/h | G21: 99 | H21: ºC | I21: 30 | J21: ºC | K21: Cerveza (medio caliente) | M21: Tensión | N21: 3x380 | O21: V
A22: 17 | B22: placas | C22: 995.7 | D22: kg/m3 | E22: 2.9 | F22: m3/h | G22: 15 | H22: ºC | I22: 45 | J22: ºC | K22: Agua (medio frío) | M22: Velocidad | N22: 3000 | O22: rpm
A23: 1184 | B23: euros | D23: =A23*1.14 -> 1349.76 | E23: U$S | M23: Frecuencia | N23: 50 | O23: hz
M24: Presión descarga | N24: 44105 | O24: MCA
A25: 1300 | B25: l | C25: 1036.1 | D25: kg/m3 | E25: 1.3 | F25: m3/h | G25: 30 | H25: ºC | I25: 16 | J25: ºC | K25: Cerveza (medio caliente) | M25: Vida útil | N25: 8 | O25: años
A26: 9 | B26: placas | C26: 999.94 | D26: kg/m3 | E26: 1.8 | F26: m3/h | G26: 5 | H26: ºC | I26: 15 | J26: ºC | K26: Glicol (medio frío) | M26: Caudal | N26: 1000 a 9000 | O26: l/h
A27: 944 | B27: euros | D27: =A27*1.14 -> 1076.16 | E27: U$S
A29: Volumen | C29: Densidad | E29: Caudal | G29: Temperatura ingreso | I29: Temperatura egreso | M29: Equipos | N29: Capacidad | P29: Precio | R29: Vida útil | U29: Equipos | V29: Capacidad | X29: Precio | Z29: Vida útil
A30: 1650 | B30: l | C30: 1025.1 | D30: kg/m3 | E30: 1.7 | F30: m3/h | G30: 99 | H30: ºC | I30: 30 | J30: ºC | K30: Cerveza (medio caliente) | M30: Juego de Intercambiadores de calor | N30: 600 | O30: l | P30: =SUM(D5,D9) -> 1593.72 | Q30: U$S | R30: 12 | S30: años | U30: Intercambiador de calor (agua de red) | V30: 600 | W30: l | X30: =D5 -> 954.18 | Y30: U$S | Z30: 12 | AA30: años
A31: 19 | B31: placas | C31: 995.7 | D31: kg/m3 | E31: 3.7 | F31: m3/h | G31: 15 | H31: ºC | I31: 45 | J31: ºC | K31: Agua (medio frío) | M31: Juego de Intercambiadores de calor | N31: 1100 | O31: l | P31: =SUM(D14,D18) -> 2265.18 | Q31: U$S | R31: 12 | S31: años | U31: Intercambiador de calor (agua de red) | V31: 1100 | W31: l | X31: =D14 -> 1470.6 | Y31: U$S | Z31: 12 | AA31: años
A32: 1244 | B32: euros | D32: =A32*1.14 -> 1418.16 | E32: U$S | M32: Juego de Intercambiadores de calor | N32: 1300 | O32: l | P32: =SUM(D23,D27) -> 2425.92 | Q32: U$S | R32: 12 | S32: años | U32: Intercambiador de calor (agua de red) | V32: 1300 | W32: l | X32: =D23 -> 1349.76 | Y32: U$S | Z32: 12 | AA32: años
M33: Juego de Intercambiadores de calor | N33: 1650 | O33: l | P33: =SUM(D32,D36) -> 2562.72 | Q33: U$S | R33: 12 | S33: años | U33: Intercambiador de calor (agua de red) | V33: 1650 | W33: l | X33: =D32 -> 1418.16 | Y33: U$S | Z33: 12 | AA33: años
A34: 1650 | B34: l | C34: 1036.1 | D34: kg/m3 | E34: 1.7 | F34: m3/h | G34: 30 | H34: ºC | I34: 16 | J34: ºC | K34: Cerveza (medio caliente) | M34: Bomba | N34: 1000 a 9000 | O34: l/h | P34: 600 | Q34: U$S | R34: 8 | S34: años
A35: 11 | B35: placas | C35: 999.94 | D35: kg/m3 | E35: 2.2 | F35: m3/h | G35: 5 | H35: ºC | I35: 15 | J35: ºC | K35: Glicol (medio frío)
A36: 1004 | B36: euros | D36: =A36*1.14 -> 1144.56 | E36: U$S | M36: Depreciación | U36: Depreciación
M39: Equipos | N39: Depreciación anual | U39: Equipos | V39: Depreciación anual
M40: Intercambiador de calor | N40: =P30/R30 -> 132.81 | O40: U$S | U40: Intercambiador de calor | V40: =X30/Z30 -> 79.515 | W40: U$S
M41: Intercambiador de calor | N41: =P31/R31 -> 188.765 | O41: U$S | U41: Intercambiador de calor | V41: =X31/Z31 -> 122.55 | W41: U$S
M42: Intercambiador de calor | N42: 202.16 | O42: U$S | U42: Intercambiador de calor | V42: 112.48 | W42: U$S
M43: Intercambiador de calor | N43: 213.56 | O43: U$S | U43: Intercambiador de calor | V43: 118.18 | W43: U$S
M44: Bomba | N44: 75 | O44: U$S

Sheet Precios Energía
A1: TARIFAS
B2: Componente fija [$] | C2: Componente variable | F2: Poder Calorífico Gas | I2: Bomba enfriamiento | L2: Bomba fermentacion
A3: Gas | B3: 330 | C3: 3.51 | D3: [$/m3] | F3: 37392 | G3: kJ/m3 | I3: =0.558/830 -> 0.0006722891566 | J3: kWh/litro | L3: =73.92/830 -> 0.08906024096 | M3: kWh/litro
A4: Electricidad | B4: 1353 | C4: 2.58 | D4: [$/kWh] | I4: =I3*3600 -> 2.420240964 | J4: kJ/litro | L4: =L3*3600 -> 320.6168675 | M4: kJ/litro
I5: 1kWh=3600kJ
